[Event "4th Sabbiadoro-Master 2018"]
[Site "Lignano Sabbiadoro"]
[Date "2018.07.31"]
[Round "4.4"]
[White "Medici, Simone"]
[Black "Damia, Angelo"]
[Result "0-1"]
[ECO "D66"]
[WhiteElo "2286"]
[BlackElo "2313"]
[Annotator "ChessBase"]
[PlyCount "115"]
[EventDate "2018.07.29"]
[EventType "swiss"]
[EventCountry "ITA"]
[SourceTitle "playchess.com"]
[Source "ChessBase"]
[SourceQuality "1"]
[TimeControl "5400+30"]

1. d4 {[%emt 0:00:30]} Nf6 {[%emt 0:10:00]} 2. c4 {[%emt 0:00:00]} e6 {[%emt 0:00:30]} 3. Nf3 {[%emt 0:01:00]} d5 {[%emt 0:00:30]} 4. Nc3 {[%emt 0:01:30]} Be7 {[%emt 0:01:30]} 5. Bg5 {[%emt 0:01:30]} Nbd7 {[%emt 0:00:30]} 6. e3 {[%emt 0:01:30]} O-O {[%emt 0:00:30]} 7. Rc1 {[%emt 0:00:30]} dxc4 {[%emt 0:02:30]} 8. Bxc4 {[%emt 0:00:30]} a6 {[%emt 0:00:00]} 9. O-O {[%emt 0:13:30]} b5 {[%emt 0:02:00]} 10. Bd3 {[%emt 0:02:30]} Bb7 {[%emt 0:00:30]} 11. Qe2 {[%emt 0:03:30]} c5 {[%emt 0:02:30]} 12. Rfd1 {[%emt 0:02:30]} c4 {[%emt 0:03:30]} 13. Bb1 {[%emt 0:05:30]} Nd5 {[%emt 0:15:30]} 14. Bxe7 {[%emt 0:03:30]} Qxe7 {[%emt 0:00:00]} 15. e4 {[%emt 0:09:30]} Nxc3 {[%emt 0:09:00]} 16. Rxc3 {[%emt 0:01:30]} Nb6 {[%emt 0:02:30]} 17. Ne5 {[%emt 0:05:30]} f6 {[%emt 0:00:30]} 18. Ng4 {[%emt 0:02:30]} b4 {[%emt 0:07:30]} 19. Rg3 {[%emt 0:02:30]} Rac8 {[%emt 0:00:30]} 20. d5 {[%emt 0:04:30]} Kh8 {[%emt 0:08:30]} 21. Ne3 {[%emt 0:09:30]} g6 {[%emt 0:11:30]} 22. d6 {[%emt 0:08:16]} Qd7 {[%emt 0:00:30]} 23. Qd2 {[%emt 0:01:45]} Qb5 {[%emt 0:04:17]} 24. d7 {[%emt 0:04:34]} Rcd8 {[%emt 0:00:05]} 25. Qd6 {[%emt 0:00:54]} Qxd7 {[%emt 0:01:36]} 26. Qxf8+ {[%emt 0:04:51]} Rxf8 {[%emt 0:00:05]} 27. Rxd7 {[%emt 0:00:05]} Nxd7 {[%emt 0:00:05]} 28. Nxc4 {[%emt 0:00:07]} Rc8 {[%emt 0:00:10]} 29. b3 {[%emt 0:04:28]} Ne5 {[%emt 0:00:54]} 30. Bd3 {[%emt 0:02:15]} Nxc4 {[%emt 0:03:51]} 31. Bxc4 {[%emt 0:03:46]} Bxe4 {[%emt 0:00:12]} 32. h3 {[%emt 0:00:52]} a5 {[%emt 0:04:16]} 33. Bxe6 {[%emt 0:00:20]} Rc1+ {[%emt 0:00:41]} 34. Kh2 {[%emt 0:00:05]} Rc3 {[%emt 0:00:51]} 35. Re3 {[%emt 0:01:01]} Rxe3 {[%emt 0:01:02]} 36. fxe3 {[%emt 0:00:01]} Bb1 {[%emt 0:00:00]} 37. Bd7 {[%emt 0:00:16]} Bxa2 {[%emt 0:00:41]} 38. Ba4 {[%emt 0:00:07]} Kg7 {[%emt 0:01:03]} 39. g3 {[%emt 0:01:14]} Kf7 {[%emt 0:00:45]} 40. Kg2 {[%emt 0:00:14]} Ke6 {[%emt 0:00:06]} 41. Kf3 {[%emt 0:00:31]} Ke5 {[%emt 0:00:19]} 42. Ke2 {[%emt 0:00:52]} Bb1 {[%emt 0:00:02]} 43. Kf3 {[%emt 0:00:50]} Be4+ {[%emt 0:00:12]} 44. Ke2 {[%emt 0:00:24]} Bg2 {[%emt 0:00:29]} 45. h4 {[%emt 0:00:06]} Kd5 {[%emt 0:00:14]} 46. Be8 {[%emt 0:00:20]} Kc5 {[%emt 0:00:32]} 47. Kd3 {[%emt 0:00:22]} Bc6 {[%emt 0:01:47]} 48. Bf7 {[%emt 0:01:01]} Bd5 {[%emt 0:00:16]} 49. Bxd5 {[%emt 0:00:54]} Kxd5 {[%emt 0:00:05]} 50. g4 {[%emt 0:00:19]} f5 {[%emt 0:01:18]} 51. g5 {[%emt 0:00:36]} Kc5 {[%emt 0:01:53]} 52. Kc2 {[%emt 0:00:29]} Kb5 {[%emt 0:00:08]} 53. Kb2 {[%emt 0:00:38]} a4 {[%emt 0:00:06]} 54. bxa4+ {[%emt 0:00:19]} Kxa4 {[%emt 0:00:05]} 55. Ka2 {[%emt 0:00:12]} b3+ {[%emt 0:00:30]} 56. Kb2 {[%emt 0:00:04]} Kb4 {[%emt 0:00:38]} 57. Kb1 {[%emt 0:00:45]} Kc3 {[%emt 0:00:07]} 58. Kc1 {[%emt 0:00:06]} 0-1

[Event "4th Sabbiadoro-Master 2018"]
[Site "Lignano Sabbiadoro"]
[Date "2018.07.31"]
[Round "4.6"]
[White "Micottis, Dorian"]
[Black "Grochowalski, Pawel"]
[Result "1/2-1/2"]
[ECO "B19"]
[WhiteElo "2279"]
[BlackElo "2049"]
[Annotator "ChessBase"]
[PlyCount "111"]
[EventDate "2018.07.29"]
[EventType "swiss"]
[EventCountry "ITA"]
[SourceTitle "playchess.com"]
[Source "ChessBase"]
[SourceQuality "1"]
[TimeControl "5400+30"]

1. e4 {[%emt 0:00:30]} c6 {[%emt 0:01:00]} 2. d4 {[%emt 0:01:30]} d5 {[%emt 0:00:00]} 3. Nd2 {[%emt 0:00:00]} dxe4 {[%emt 0:00:00]} 4. Nxe4 {[%emt 0:00:00]} Bf5 {[%emt 0:00:30]} 5. Ng3 {[%emt 0:00:00]} Bg6 {[%emt 0:00:00]} 6. h4 {[%emt 0:00:00]} h6 {[%emt 0:00:00]} 7. Nf3 {[%emt 0:00:30]} Nd7 {[%emt 0:00:30]} 8. h5 {[%emt 0:00:00]} Bh7 {[%emt 0:00:30]} 9. Bd3 {[%emt 0:00:00]} Bxd3 {[%emt 0:00:00]} 10. Qxd3 {[%emt 0:00:00]} e6 {[%emt 0:00:00]} 11. Bd2 {[%emt 0:00:00]} Ngf6 {[%emt 0:00:30]} 12. O-O-O {[%emt 0:00:30]} Be7 {[%emt 0:00:00]} 13. Kb1 {[%emt 0:00:00]} Qc7 {[%emt 0:02:00]} 14. Ne4 {[%emt 0:00:00]} Nxe4 {[%emt 0:00:30]} 15. Qxe4 {[%emt 0:00:30]} O-O-O {[%emt 0:03:30]} 16. g3 {[%emt 0:00:30]} Kb8 {[%emt 0:08:30]} 17. c4 {[%emt 0:03:30]} Ka8 {[%emt 0:01:30]} 18. Bc3 {[%emt 0:04:30]} Nf6 {[%emt 0:31:30]} 19. Qe2 {[%emt 0:01:30]} b5 {[%emt 0:00:30]} 20. Ne5 {[%emt 0:15:30]} Bd6 {[%emt 0:04:30]} 21. f4 {[%emt 0:22:30]} bxc4 {[%emt 0:15:30]} 22. Qxc4 {[%emt 0:00:30]} Nd5 {[%emt 0:09:30]} 23. Rc1 {[%emt 0:00:30]} Bxe5 {[%emt 0:02:53]} 24. dxe5 {[%emt 0:00:30]} Nb6 {[%emt 0:05:37]} 25. Ba5 {[%emt 0:06:30]} Nxc4 {[%emt 0:01:30]} 26. Bxc7 {[%emt 0:00:30]} Rd7 {[%emt 0:00:06]} 27. Rxc4 {[%emt 0:00:30]} Rxc7 {[%emt 0:00:01]} 28. Rd1 {[%emt 0:00:30]} Kb7 {[%emt 0:00:16]} 29. Kc2 {[%emt 0:00:30]} Rg8 {[%emt 0:00:08]} 30. Rc3 {[%emt 0:02:30]} g6 {[%emt 0:01:07]} 31. hxg6 {[%emt 0:00:30]} Rxg6 {[%emt 0:00:03]} 32. Rd8 {[%emt 0:00:00]} Rc8 {[%emt 0:03:25]} 33. Rxc8 {[%emt 0:02:00]} Kxc8 {[%emt 0:00:07]} 34. Rxc6+ {[%emt 0:00:30]} Kb7 {[%emt 0:00:29]} 35. Rc3 {[%emt 0:00:00]} h5 {[%emt 0:00:29]} 36. Kd2 {[%emt 0:17:00]} Rg4 {[%emt 0:00:19]} 37. Rf3 {[%emt 0:00:30]} h4 {[%emt 0:01:43]} 38. gxh4 {[%emt 0:00:30]} Rxh4 {[%emt 0:00:08]} 39. Ke3 {[%emt 0:02:00]} Rh2 {[%emt 0:01:52]} 40. Rf2 {[%emt 0:00:30]} Rh3+ {[%emt 0:00:42]} 41. Ke4 {[%emt 0:01:00]} Rh4 {[%emt 0:00:12]} 42. Rg2 {[%emt 0:01:30]} Rh7 {[%emt 0:00:47]} 43. Rg8 {[%emt 0:03:30]} Kb6 {[%emt 0:01:37]} 44. Rb8+ {[%emt 0:02:30]} Kc6 {[%emt 0:00:39]} 45. Ra8 {[%emt 0:00:37]} Kb6 {[%emt 0:00:33]} 46. b4 {[%emt 0:04:23]} Kb7 {[%emt 0:01:37]} 47. Rf8 {[%emt 0:00:33]} Kc6 {[%emt 0:02:00]} 48. a4 {[%emt 0:00:43]} a6 {[%emt 0:00:31]} 49. Kd4 {[%emt 0:00:44]} Rg7 {[%emt 0:00:36]} 50. Kc4 {[%emt 0:00:27]} Rh7 {[%emt 0:00:05]} 51. Rd8 {[%emt 0:07:22]} Rh1 {[%emt 0:09:00]} 52. Rd6+ {[%emt 0:01:09]} Kb7 {[%emt 0:00:42]} 53. Rd7+ {[%emt 0:03:12]} Kc6 {[%emt 0:00:39]} 54. Rxf7 {[%emt 0:01:06]} Rc1+ {[%emt 0:00:03]} 55. Kb3 {[%emt 0:00:36]} Rb1+ {[%emt 0:00:30]} 56. Kc3 {[%emt 0:00:04]} 1/2-1/2

[Event "4th Sabbiadoro-Master 2018"]
[Site "Lignano Sabbiadoro"]
[Date "2018.07.31"]
[Round "4.7"]
[White "Barberi, Alessandro"]
[Black "Siclari, Giovanni"]
[Result "0-1"]
[ECO "A22"]
[WhiteElo "2044"]
[BlackElo "2185"]
[Annotator "NA"]
[PlyCount "57"]
[EventDate "2018.07.29"]
[EventType "swiss"]
[EventCountry "ITA"]
[SourceTitle "playchess.com"]
[Source "ChessBase"]
[SourceQuality "1"]
[TimeControl "5400+30"]

1. c4 {[%emt 0:03:30]} Nf6 {[%emt 0:01:00]} 2. Nc3 {[%emt 0:00:30]} e5 {[%emt 0:00:00]} 3. g3 {[%emt 0:00:00]} Bb4 {[%emt 0:00:00]} 4. Qc2 {[%emt 0:01:00]} O-O {[%emt 0:02:30]} 5. Bg2 {[%emt 0:00:00]} Re8 {[%emt 0:03:30]} 6. e3 {[%emt 0:00:00]} c6 {[%emt 0:03:30]} 7. a3 {[%emt 0:03:30]} Bxc3 {[%emt 0:08:30]} 8. Qxc3 {[%emt 0:00:30]} d5 {[%emt 0:00:00]} 9. d3 {[%emt 0:01:30]} d4 {[%emt 0:07:00]} 10. Qc2 {[%emt 0:00:30]} e4 {[%emt 0:18:30]} 11. dxe4 {[%emt 0:00:30]} d3 {[%emt 0:00:30]} 12. Qb3 {[%emt 0:01:30]} Nxe4 {[%emt 0:00:30]} 13. Nf3 {[%emt 0:01:30]} Na6 {[%emt 0:05:30]} 14. Bd2 {[%emt 0:00:30]} Nac5 {[%emt 0:02:30]} 15. Qa2 {[%emt 0:00:30]} Bg4 {[%emt 0:03:30]} 16. b4 {[%emt 0:03:30]} Qf6 {[%emt 0:02:30]} 17. bxc5 {[%emt 0:01:30]} Bxf3 {[%emt 0:00:30]} 18. O-O {[%emt 0:00:00]} Rad8 {[%emt 0:07:30]} 19. Rab1 {[%emt 0:01:00]} Rd7 {[%emt 0:00:30]} 20. Qb2 {[%emt 0:00:30]} Qf5 {[%emt 0:01:30]} 21. h3 {[%emt 0:04:30]} Bxg2 {[%emt 0:07:30]} 22. Kxg2 {[%emt 0:00:30]} Ng5 {[%emt 0:00:00]} 23. Rh1 {[%emt 0:00:30]} Qf3+ {[%emt 0:00:00]} 24. Kg1 {[%emt 0:00:00]} Ne4 {[%emt 0:00:00]} 25. Rh2 {[%emt 0:00:00]} Re6 {[%emt 0:02:00]} 26. a4 {[%emt 0:00:30]} Rg6 {[%emt 0:02:30]} 27. Qe5 {[%emt 0:01:30]} Rd8 {[%emt 0:00:30]} 28. Ba5 {[%emt 0:02:30]} Nxg3 {[%emt 0:03:45]} 29. Rh1 {[%emt 0:00:30]} 0-1

[Event "4th Sabbiadoro-Master 2018"]
[Site "Lignano Sabbiadoro"]
[Date "2018.07.31"]
[Round "4.8"]
[White "Mufic, Goran"]
[Black "Tiraboschi, Nicolo`"]
[Result "1/2-1/2"]
[ECO "D02"]
[WhiteElo "2299"]
[BlackElo "2102"]
[Annotator "NA"]
[PlyCount "46"]
[EventDate "2018.07.29"]
[EventType "swiss"]
[EventCountry "ITA"]
[SourceTitle "playchess.com"]
[Source "ChessBase"]
[SourceQuality "1"]
[TimeControl "5400+30"]

1. d4 {[%emt 0:01:30]} d5 {[%emt 0:08:00]} 2. Bf4 {[%emt 0:00:30]} Nf6 {[%emt 0:00:30]} 3. e3 {[%emt 0:00:00]} e6 {[%emt 0:00:30]} 4. Nf3 {[%emt 0:00:00]} Bd6 {[%emt 0:00:30]} 5. Bg3 {[%emt 0:00:30]} Ne4 {[%emt 0:01:30]} 6. Bxd6 {[%emt 0:03:30]} cxd6 {[%emt 0:02:30]} 7. Nbd2 {[%emt 0:01:30]} Qb6 {[%emt 0:05:30]} 8. Rb1 {[%emt 0:00:30]} Bd7 {[%emt 0:03:30]} 9. Bd3 {[%emt 0:06:30]} Nxd2 {[%emt 0:05:30]} 10. Qxd2 {[%emt 0:02:30]} Bb5 {[%emt 0:01:30]} 11. O-O {[%emt 0:00:30]} O-O {[%emt 0:00:30]} 12. Rfe1 {[%emt 0:05:30]} Nd7 {[%emt 0:07:30]} 13. e4 {[%emt 0:03:30]} dxe4 {[%emt 0:03:30]} 14. Rxe4 {[%emt 0:03:30]} Nf6 {[%emt 0:01:30]} 15. Rf4 {[%emt 0:08:30]} Qa6 {[%emt 0:20:30]} 16. Bxb5 {[%emt 0:06:30]} Qxb5 {[%emt 0:00:00]} 17. b3 {[%emt 0:07:30]} Rac8 {[%emt 0:06:00]} 18. a4 {[%emt 0:04:30]} Qh5 {[%emt 0:01:30]} 19. c4 {[%emt 0:04:30]} e5 {[%emt 0:12:05]} 20. dxe5 {[%emt 0:02:30]} dxe5 {[%emt 0:00:15]} 21. Rh4 {[%emt 0:00:00]} Qf5 {[%emt 0:00:26]} 22. Re1 {[%emt 0:01:00]} Rcd8 {[%emt 0:03:56]} 23. Qe3 {[%emt 0:05:30]} Rd3 {[%emt 0:03:05]} 1/2-1/2

[Event "4th Sabbiadoro-Master 2018"]
[Site "Lignano Sabbiadoro"]
[Date "2018.07.31"]
[Round "4.9"]
[White "Sgnaolin, Davide"]
[Black "Redondo Arguelles, Graciela"]
[Result "1/2-1/2"]
[ECO "C10"]
[WhiteElo "2267"]
[BlackElo "2051"]
[Annotator "NA"]
[PlyCount "51"]
[EventDate "2018.07.29"]
[EventType "swiss"]
[EventCountry "ITA"]
[SourceTitle "playchess.com"]
[Source "ChessBase"]
[SourceQuality "1"]
[TimeControl "5400+30"]

1. e4 e6 2. d4 d5 3. Nd2 dxe4 4. Nxe4 Nd7 5. Nf3 Ngf6 6. Bd3 Be7 7. Qe2 O-O 8. Bg5 c5 9. dxc5 Nxc5 10. Nxc5 Qa5+ 11. c3 Qxc5 12. O-O Rd8 13. Rad1 Bd7 14. Ne5 Be8 15. Bh4 Rd5 16. Bg3 Rad8 17. c4 Rd4 18. Nf3 R4d7 19. Be5 b5 20. b3 bxc4 21. Bxc4 Rxd1 22. Rxd1 Rxd1+ 23. Qxd1 Bc6 24. Bb2 h6 25. Ne5 Bd5 26. Bxd5 1/2-1/2

[Event "4th Sabbiadoro-Master 2018"]
[Site "Lignano Sabbiadoro"]
[Date "2018.07.31"]
[Round "4.10"]
[White "Prete, Alessandro"]
[Black "Olivetti, Davide"]
[Result "1/2-1/2"]
[ECO "C56"]
[WhiteElo "2032"]
[BlackElo "2234"]
[Annotator "NA"]
[PlyCount "39"]
[EventDate "2018.07.29"]
[EventType "swiss"]
[EventCountry "ITA"]
[SourceTitle "playchess.com"]
[Source "ChessBase"]
[SourceQuality "1"]
[TimeControl "5400+30"]

1. e4 {[%emt 0:00:30]} e5 {[%emt 0:18:00]} 2. Bc4 {[%emt 0:01:30]} Nf6 {[%emt 0:00:30]} 3. d4 {[%emt 0:00:00]} exd4 {[%emt 0:00:30]} 4. Nf3 {[%emt 0:00:00]} Nc6 {[%emt 0:00:30]} 5. O-O {[%emt 0:00:30]} Nxe4 {[%emt 0:00:30]} 6. Re1 {[%emt 0:00:30]} d5 {[%emt 0:00:30]} 7. Bxd5 {[%emt 0:01:30]} Qxd5 {[%emt 0:00:00]} 8. Nc3 {[%emt 0:00:00]} Qh5 {[%emt 0:01:00]} 9. Nxe4 {[%emt 0:05:00]} Be6 {[%emt 0:00:30]} 10. Neg5 {[%emt 0:03:30]} O-O-O {[%emt 0:03:30]} 11. Nxe6 {[%emt 0:06:30]} fxe6 {[%emt 0:00:30]} 12. Rxe6 {[%emt 0:01:30]} Bd6 {[%emt 0:01:30]} 13. Bd2 {[%emt 0:07:30]} Rde8 {[%emt 0:23:30]} 14. Rxe8+ {[%emt 0:18:30]} Rxe8 {[%emt 0:00:30]} 15. h3 {[%emt 0:00:30]} Qb5 {[%emt 0:07:30]} 16. b3 {[%emt 0:08:30]} Qd5 {[%emt 0:05:30]} 17. Bc3 {[%emt 0:07:30]} Bc5 {[%emt 0:03:30]} 18. Qd3 {[%emt 0:08:30]} Qe4 {[%emt 0:05:30]} 19. Qxe4 {[%emt 0:03:30]} Rxe4 {[%emt 0:00:30]} 20. Re1 {[%emt 0:00:30]} 1/2-1/2

[Event "4th Sabbiadoro-Master 2018"]
[Site "Lignano Sabbiadoro"]
[Date "2018.08.01"]
[Round "5.3"]
[White "Bentivegna, Francesco"]
[Black "Ristic, Nenad"]
[Result "1/2-1/2"]
[ECO "B22"]
[WhiteElo "2248"]
[BlackElo "2356"]
[Annotator "NA RC"]
[PlyCount "52"]
[EventDate "2018.07.29"]
[EventType "swiss"]
[EventCountry "ITA"]
[SourceTitle "playchess.com"]
[Source "ChessBase"]
[SourceQuality "1"]
[TimeControl "5400+30"]

1. e4 {[%emt 0:22:30]} c5 {[%emt 0:00:30]} 2. c3 {[%emt 0:00:30]} Nf6 {[%emt 0:00:30]} 3. e5 {[%emt 0:00:30]} Nd5 {[%emt 0:00:30]} 4. d4 {[%emt 0:00:00]} cxd4 {[%emt 0:00:00]} 5. Nf3 {[%emt 0:00:00]} e6 {[%emt 0:00:00]} 6. cxd4 {[%emt 0:00:00]} Qc7 {[%emt 0:00:30]} 7. Bd2 {[%emt 0:15:00]} d6 {[%emt 0:01:30]} 8. Nc3 {[%emt 0:00:30]} Nxc3 {[%emt 0:00:30]} 9. Bxc3 {[%emt 0:06:30]} dxe5 {[%emt 0:06:30]} 10. dxe5 {[%emt 0:03:30]} Nc6 {[%emt 0:02:30]} 11. Bd3 {[%emt 0:05:30]} Be7 {[%emt 0:06:30]} 12. O-O {[%emt 0:01:30]} O-O {[%emt 0:00:30]} 13. Qe2 {[%emt 0:00:00]} b6 {[%emt 0:02:30]} 14. Rac1 {[%emt 0:11:00]} Bb7 {[%emt 0:05:30]} 15. b4 {[%emt 0:00:30]} Rac8 {[%emt 0:04:30]} 16. b5 {[%emt 0:02:30]} Nb8 {[%emt 0:02:30]} 17. Nd4 {[%emt 0:04:30]} Rfd8 {[%emt 0:02:30]} 18. Bb2 {[%emt 0:07:04]} Qd7 {[%emt 0:02:30]} 19. Rxc8 {[%emt 0:00:16]} Rxc8 {[%emt 0:00:30]} 20. Rd1 {[%emt 0:00:04]} Qd5 {[%emt 0:07:30]} 21. f3 {[%emt 0:07:43]} Bc5 {[%emt 0:07:30]} 22. Kh1 {[%emt 0:00:26]} Qxa2 {[%emt 0:17:30]} 23. Bc4 {[%emt 0:01:56]} Qa4 {[%emt 0:01:30]} 24. Ra1 {[%emt 0:05:43]} Qb4 {[%emt 0:00:30]} 25. Ba3 {[%emt 0:00:27]} Qc3 {[%emt 0:00:30]} 26. Bb2 {[%emt 0:00:02]} Qb4 1/2-1/2

[Event "4th Sabbiadoro-Master 2018"]
[Site "Lignano Sabbiadoro"]
[Date "2018.08.02"]
[Round "6.3"]
[White "Ristic, Nenad"]
[Black "Zuttioni, Federico"]
[Result "1/2-1/2"]
[ECO "B22"]
[WhiteElo "2356"]
[BlackElo "2141"]
[Annotator "NA"]
[PlyCount "78"]
[EventDate "2018.07.29"]
[EventType "swiss"]
[EventCountry "ITA"]
[SourceTitle "playchess.com"]
[Source "ChessBase"]
[SourceQuality "1"]
[TimeControl "5400+30"]

1. e4 {[%emt 0:00:30]} c5 {[%emt 0:04:30]} 2. c3 {[%emt 0:00:30]} Nf6 {[%emt 0:00:30]} 3. e5 {[%emt 0:00:00]} Nd5 {[%emt 0:00:30]} 4. d4 {[%emt 0:00:00]} cxd4 {[%emt 0:00:30]} 5. Nf3 {[%emt 0:00:30]} e6 {[%emt 0:02:30]} 6. cxd4 {[%emt 0:00:00]} b6 {[%emt 0:07:30]} 7. Nc3 {[%emt 0:00:00]} Nxc3 {[%emt 0:14:30]} 8. bxc3 {[%emt 0:00:30]} Bb7 {[%emt 0:00:30]} 9. Bd3 {[%emt 0:01:30]} Be7 {[%emt 0:02:30]} 10. h4 {[%emt 0:06:30]} h6 {[%emt 0:11:30]} 11. Nd2 {[%emt 0:04:30]} Qc7 {[%emt 0:15:30]} 12. Ne4 {[%emt 0:00:30]} Nc6 {[%emt 0:05:30]} 13. a4 {[%emt 0:07:30]} Na5 {[%emt 0:07:30]} 14. O-O {[%emt 0:06:30]} Rc8 {[%emt 0:06:32]} 15. Qg4 {[%emt 0:23:30]} Bxe4 {[%emt 0:13:33]} 16. Qxg7 {[%emt 0:00:00]} Rf8 {[%emt 0:00:29]} 17. Bxe4 {[%emt 0:00:00]} Qxc3 {[%emt 0:00:43]} 18. Be3 {[%emt 0:00:30]} Nb3 {[%emt 0:00:45]} 19. Rad1 {[%emt 0:00:30]} Rc4 {[%emt 0:00:56]} 20. Qxh6 {[%emt 0:01:30]} Rxa4 {[%emt 0:01:32]} 21. Qh7 {[%emt 0:00:30]} Nxd4 {[%emt 0:00:30]} 22. Rxd4 {[%emt 0:01:30]} Rxd4 {[%emt 0:00:30]} 23. Rc1 {[%emt 0:00:30]} Qxc1+ {[%emt 0:00:30]} 24. Bxc1 {[%emt 0:00:30]} Rd1+ {[%emt 0:00:30]} 25. Kh2 {[%emt 0:00:30]} Rxc1 {[%emt 0:00:30]} 26. h5 {[%emt 0:08:30]} f5 {[%emt 0:02:02]} 27. Bf3 {[%emt 0:00:30]} a5 {[%emt 0:00:47]} 28. h6 {[%emt 0:00:30]} a4 {[%emt 0:00:41]} 29. Qg7 {[%emt 0:00:30]} a3 {[%emt 0:00:30]} 30. h7 {[%emt 0:00:30]} a2 {[%emt 0:00:30]} 31. h8=Q {[%emt 0:00:30]} a1=Q {[%emt 0:00:30]} 32. Bh5+ {[%emt 0:00:30]} Kd8 {[%emt 0:00:30]} 33. Qhxf8+ {[%emt 0:00:30]} Bxf8 {[%emt 0:00:30]} 34. Qxf8+ {[%emt 0:00:30]} Kc7 {[%emt 0:00:30]} 35. Qd6+ {[%emt 0:00:30]} Kd8 {[%emt 0:00:30]} 36. Qb8+ {[%emt 0:00:30]} Rc8 {[%emt 0:00:30]} 37. Qxb6+ {[%emt 0:00:30]} Ke7 {[%emt 0:00:30]} 38. Qd6+ {[%emt 0:00:30] Ke8# [%clk 0:00:00]} Kd8 {[%emt 0:00:30]} 39. Qf8+ {[%emt 0:00:30]} Kc7 {[%emt 0:00:30]} 1/2-1/2

[Event "4th Sabbiadoro-Master 2018"]
[Site "Lignano Sabbiadoro"]
[Date "2018.08.02"]
[Round "6.4"]
[White "Simonetto, Andrea"]
[Black "Damia, Angelo"]
[Result "1/2-1/2"]
[ECO "D35"]
[WhiteElo "2173"]
[BlackElo "2313"]
[Annotator "NA"]
[PlyCount "80"]
[EventDate "2018.07.29"]
[EventType "swiss"]
[EventCountry "ITA"]
[SourceTitle "playchess.com"]
[Source "ChessBase"]
[SourceQuality "1"]
[TimeControl "5400+30"]

1. d4 {[%emt 0:00:30]} e6 {[%emt 0:02:30]} 2. c4 {[%emt 0:00:00]} d5 {[%emt 0:00:00]} 3. Nc3 {[%emt 0:00:00]} Nf6 {[%emt 0:00:00]} 4. cxd5 {[%emt 0:00:00]} exd5 {[%emt 0:00:30]} 5. Bg5 {[%emt 0:00:00]} Nbd7 {[%emt 0:00:30]} 6. e3 {[%emt 0:00:30]} Be7 {[%emt 0:00:00]} 7. Bd3 {[%emt 0:00:30]} c6 {[%emt 0:01:00]} 8. Nge2 {[%emt 0:00:30]} O-O {[%emt 0:02:30]} 9. O-O {[%emt 0:00:30]} h6 {[%emt 0:03:30]} 10. Bh4 {[%emt 0:01:30]} Ne4 {[%emt 0:00:30]} 11. Bxe7 {[%emt 0:01:30]} Qxe7 {[%emt 0:00:30]} 12. Qc2 {[%emt 0:02:30]} Ndf6 {[%emt 0:01:30]} 13. Rae1 {[%emt 0:06:30]} Bf5 {[%emt 0:02:30]} 14. f3 {[%emt 0:05:30]} Nxc3 {[%emt 0:00:30]} 15. Nxc3 {[%emt 0:00:30]} Bxd3 {[%emt 0:00:30]} 16. Qxd3 {[%emt 0:00:00]} Qb4 {[%emt 0:00:30]} 17. Re2 {[%emt 0:00:00]} Rfe8 {[%emt 0:00:30]} 18. Rfe1 {[%emt 0:02:30]} Rad8 {[%emt 0:01:30]} 19. a3 {[%emt 0:00:30]} Qc4 {[%emt 0:01:30]} 20. Qc2 {[%emt 0:07:30]} Qa6 {[%emt 0:01:30]} 21. Na2 {[%emt 0:06:30]} Re7 {[%emt 0:01:30]} 22. Nb4 {[%emt 0:01:30]} Qb6 {[%emt 0:01:30]} 23. Nd3 {[%emt 0:00:30]} Rde8 {[%emt 0:00:00]} 24. b4 {[%emt 0:04:30]} a5 {[%emt 0:04:00]} 25. Qc5 {[%emt 0:06:30]} Qa6 {[%emt 0:01:30]} 26. Ne5 {[%emt 0:00:00]} axb4 {[%emt 0:00:30]} 27. axb4 {[%emt 0:00:00]} Nd7 {[%emt 0:00:30]} 28. Nxd7 {[%emt 0:00:00]} Rxd7 {[%emt 0:00:30]} 29. e4 {[%emt 0:02:00]} dxe4 {[%emt 0:06:30]} 30. Rxe4 {[%emt 0:04:30]} Rxe4 {[%emt 0:00:30]} 31. Rxe4 {[%emt 0:00:30]} Qa1+ {[%emt 0:02:30]} 32. Kf2 {[%emt 0:00:30]} Qb2+ {[%emt 0:00:30]} 33. Re2 {[%emt 0:07:30]} Qxd4+ {[%emt 0:00:30]} 34. Qxd4 {[%emt 0:00:30]} Rxd4 {[%emt 0:00:30]} 35. Re8+ {[%emt 0:00:00]} Kh7 {[%emt 0:00:30]} 36. b5 {[%emt 0:00:00]} Rd2+ {[%emt 0:03:30]} 37. Kg3 {[%emt 0:00:30]} Rd7 {[%emt 0:09:30]} 38. f4 {[%emt 0:11:30]} b6 {[%emt 0:00:30]} 39. h4 {[%emt 0:00:30]} Kg6 {[%emt 0:01:30]} 40. Kg4 {[%emt 0:00:30]} Kf6 {[%emt 0:19:30]} 1/2-1/2